[Event "*** SCC Grand Prix: Titled Tuesday Blitz"]
[Site "Chess.com"]
[Date "2020.09.29"]
[Round "8"]
[White "Trickov"]
[Black "anon569"]
[Result "1-0"]
[WhiteElo "2362"]
[BlackElo "2243"]
[TimeControl "180+1"]
[EndTime "11:32:14 PDT"]
[Termination "Trickov won by checkmate"]

1. d4 {[%clk 0:02:54.9]} 1... Nf6 {[%clk 0:02:52.2]} 2. Nf3 {[%clk 0:02:55.3]}
2... e6 {[%clk 0:02:52]} 3. g3 {[%clk 0:02:55]} 3... b6 {[%clk 0:02:51]} 4. Bg2
{[%clk 0:02:55.1]} 4... Bb7 {[%clk 0:02:51.6]} 5. O-O {[%clk 0:02:55.7]} 5...
Be7 {[%clk 0:02:52.2]} 6. c4 {[%clk 0:02:56.2]} 6... O-O {[%clk 0:02:51.9]} 7.
Nc3 {[%clk 0:02:56.7]} 7... d6 {[%clk 0:02:50.9]} 8. Qc2 {[%clk 0:02:55.6]} 8...
Nbd7 {[%clk 0:02:50.1]} 9. e4 {[%clk 0:02:54.9]} 9... e5 {[%clk 0:02:50.1]} 10.
h3 {[%clk 0:02:52]} 10... Re8 {[%clk 0:02:47.7]} 11. Rd1 {[%clk 0:02:48.3]}
11... exd4 {[%clk 0:02:45.3]} 12. Nxd4 {[%clk 0:02:47.5]} 12... Bf8 {[%clk
0:02:43.6]} 13. b3 {[%clk 0:02:37.8]} 13... Qc8 {[%clk 0:02:33.5]} 14. Be3
{[%clk 0:02:31.8]} 14... Nc5 {[%clk 0:02:27]} 15. f3 {[%clk 0:02:29.4]} 15...
Ne6 {[%clk 0:02:24.4]} 16. Rac1 {[%clk 0:02:26.7]} 16... g6 {[%clk 0:02:23.4]}
17. Nd5 {[%clk 0:02:22.5]} 17... Bg7 {[%clk 0:02:23.1]} 18. Bf2 {[%clk 0:02:21]}
18... Nd7 {[%clk 0:02:14.4]} 19. b4 {[%clk 0:02:14.5]} 19... a5 {[%clk
0:02:08.9]} 20. a3 {[%clk 0:02:12.3]} 20... axb4 {[%clk 0:01:53.3]} 21. axb4
{[%clk 0:02:11]} 21... Ra7 {[%clk 0:01:47.7]} 22. f4 {[%clk 0:01:59.5]} 22...
Nxd4 {[%clk 0:00:23.4]} 23. Bxd4 {[%clk 0:01:57.3]} 23... Bxd4+ {[%clk
0:00:23.9]} 24. Rxd4 {[%clk 0:01:56.8]} 24... Bc6 {[%clk 0:00:24]} 25. h4 {[%clk
0:01:45.5]} 25... Qa8 {[%clk 0:00:20.4]} 26. Rd2 {[%clk 0:01:38.7]} 26... Bxd5
{[%clk 0:00:06.9]} 27. cxd5 {[%clk 0:01:37.5]} 27... b5 {[%clk 0:00:06.8]} 28.
Qb2 {[%clk 0:01:29.5]} 28... Qb7 {[%clk 0:00:04.8]} 29. Bh3 {[%clk 0:01:26.2]}
29... Nf8 {[%clk 0:00:04.1]} 30. Rdc2 {[%clk 0:01:22.9]} 30... Qb6+ {[%clk
0:00:03.8]} 31. Kh2 {[%clk 0:01:21]} 31... Rea8 {[%clk 0:00:04.3]} 32. Qf6
{[%clk 0:01:17.5]} 32... Qe3 {[%clk 0:00:02.8]} 33. Rxc7 {[%clk 0:01:07.9]}
33... Ra2+ {[%clk 0:00:02.7]} 34. Bg2 {[%clk 0:01:04.2]} 34... Qf2 {[%clk
0:00:02.1]} 35. Qxf7+ {[%clk 0:01:03.4]} 35... Kh8 {[%clk 0:00:01.7]} 36. Qg7#
{[%clk 0:01:02.5]} 1-0

[Event "*** SCC Grand Prix: Titled Tuesday Blitz"]
[Site "Chess.com"]
[Date "2020.09.29"]
[Round "8"]
[White "CheckThis4"]
[Black "GiantThresher"]
[Result "0-1"]
[WhiteElo "2623"]
[BlackElo "2771"]
[TimeControl "180+1"]
[EndTime "11:32:20 PDT"]
[Termination "GiantThresher won on time"]

1. d4 {[%clk 0:03:00.9]} 1... Nf6 {[%clk 0:02:59.2]} 2. Bg5 {[%clk 0:02:59.5]}
2... Ne4 {[%clk 0:02:57.6]} 3. Bf4 {[%clk 0:02:59.3]} 3... c5 {[%clk 0:02:54.5]}
4. f3 {[%clk 0:02:59.6]} 4... Qa5+ {[%clk 0:02:54.4]} 5. c3 {[%clk 0:03:00]}
5... Nf6 {[%clk 0:02:54.5]} 6. d5 {[%clk 0:03:00.4]} 6... e6 {[%clk 0:02:34.1]}
7. e4 {[%clk 0:03:00]} 7... exd5 {[%clk 0:02:32.2]} 8. exd5 {[%clk 0:02:59.8]}
8... d6 {[%clk 0:02:33.1]} 9. Qd2 {[%clk 0:02:59.3]} 9... Be7 {[%clk 0:02:27.2]}
10. c4 {[%clk 0:02:59]} 10... Qxd2+ {[%clk 0:02:12.9]} 11. Kxd2 {[%clk
0:02:59.9]} 11... b5 {[%clk 0:02:09.5]} 12. Nc3 {[%clk 0:02:54.1]} 12... bxc4
{[%clk 0:02:09.4]} 13. Bxc4 {[%clk 0:02:53.6]} 13... Ba6 {[%clk 0:02:09.7]} 14.
Nb5 {[%clk 0:02:28.7]} 14... Kd7 {[%clk 0:01:47.4]} 15. Ne2 {[%clk 0:02:13.3]}
15... Bb7 {[%clk 0:01:39.8]} 16. Nbc3 {[%clk 0:02:04.8]} 16... Na6 {[%clk
0:01:39.7]} 17. Ng3 {[%clk 0:01:56.3]} 17... Nc7 {[%clk 0:01:38.5]} 18. Nf5
{[%clk 0:01:35.2]} 18... Nfxd5 {[%clk 0:01:36]} 19. Nxd5 {[%clk 0:01:04.2]}
19... Nxd5 {[%clk 0:01:36.9]} 20. Bxd5 {[%clk 0:01:02.5]} 20... Bxd5 {[%clk
0:01:36.6]} 21. Rhe1 {[%clk 0:00:48.2]} 21... Be6 {[%clk 0:01:29]} 22. Nxg7
{[%clk 0:00:46.9]} 22... Rhg8 {[%clk 0:01:24.9]} 23. Nxe6 {[%clk 0:00:36.7]}
23... Rxg2+ {[%clk 0:01:24.2]} 24. Re2 {[%clk 0:00:29.6]} 24... Rxe2+ {[%clk
0:01:22.5]} 25. Kxe2 {[%clk 0:00:30.5]} 25... fxe6 {[%clk 0:01:22.9]} 26. Rg1
{[%clk 0:00:28.6]} 26... Rf8 {[%clk 0:01:23.3]} 27. Be3 {[%clk 0:00:24.4]} 27...
Rf7 {[%clk 0:01:23.6]} 28. b3 {[%clk 0:00:24.5]} 28... Kc6 {[%clk 0:01:19.6]}
29. Rg8 {[%clk 0:00:24.1]} 29... Bf6 {[%clk 0:01:17.2]} 30. Re8 {[%clk
0:00:23.3]} 30... Kd5 {[%clk 0:01:17.1]} 31. Rg8 {[%clk 0:00:19.3]} 31... Rg7
{[%clk 0:01:16.3]} 32. Rf8 {[%clk 0:00:19.4]} 32... Be5 {[%clk 0:01:13.2]} 33.
f4 {[%clk 0:00:19.2]} 33... Bd4 {[%clk 0:01:13.6]} 34. Re8 {[%clk 0:00:15.5]}
34... Rg2+ {[%clk 0:01:11.3]} 35. Kf3 {[%clk 0:00:15.8]} 35... Rxa2 {[%clk
0:01:10]} 36. Bxd4 {[%clk 0:00:13.6]} 36... cxd4 {[%clk 0:01:10.9]} 37. Rg8
{[%clk 0:00:11]} 37... Rxh2 {[%clk 0:01:09.9]} 38. Rg5+ {[%clk 0:00:10.2]} 38...
e5 {[%clk 0:01:08.8]} 39. f5 {[%clk 0:00:09.9]} 39... Rh3+ {[%clk 0:01:08.9]}
40. Kg2 {[%clk 0:00:09.6]} 40... Rxb3 {[%clk 0:01:08.8]} 41. f6 {[%clk
0:00:09.7]} 41... Ke6 {[%clk 0:01:09.1]} 42. Rf5 {[%clk 0:00:04.8]} 42... Kxf5
{[%clk 0:01:08.9]} 0-1

[Event "*** SCC Grand Prix: Titled Tuesday Blitz"]
[Site "Chess.com"]
[Date "2020.09.29"]
[Round "8"]
[White "Manukyan_Artak"]
[Black "paulrusan"]
[Result "0-1"]
[WhiteElo "2377"]
[BlackElo "2277"]
[TimeControl "180+1"]
[EndTime "11:32:27 PDT"]
[Termination "paulrusan won by resignation"]

1. e4 {[%clk 0:03:00.9]} 1... g6 {[%clk 0:02:59.2]} 2. d4 {[%clk 0:03:00.4]}
2... Bg7 {[%clk 0:02:58.9]} 3. Nc3 {[%clk 0:02:56.9]} 3... d6 {[%clk 0:02:58.8]}
4. Bg5 {[%clk 0:02:56.4]} 4... a6 {[%clk 0:02:58]} 5. Qd2 {[%clk 0:02:56.4]}
5... b5 {[%clk 0:02:58.1]} 6. Bd3 {[%clk 0:02:53]} 6... Bb7 {[%clk 0:02:57.8]}
7. Nf3 {[%clk 0:02:50.1]} 7... Nd7 {[%clk 0:02:58]} 8. a3 {[%clk 0:02:35.9]}
8... c5 {[%clk 0:02:56.1]} 9. d5 {[%clk 0:02:29.9]} 9... Ngf6 {[%clk 0:02:55.2]}
10. O-O {[%clk 0:02:23.5]} 10... O-O {[%clk 0:02:51.4]} 11. Rfe1 {[%clk
0:02:21.1]} 11... Qc7 {[%clk 0:02:45.7]} 12. Bh6 {[%clk 0:02:18.9]} 12... e6
{[%clk 0:02:33.4]} 13. Bxg7 {[%clk 0:02:16.3]} 13... Kxg7 {[%clk 0:02:33]} 14.
Bf1 {[%clk 0:02:04]} 14... exd5 {[%clk 0:02:31]} 15. exd5 {[%clk 0:02:02.9]}
15... Rfe8 {[%clk 0:02:27.7]} 16. h4 {[%clk 0:01:57.2]} 16... b4 {[%clk
0:02:18.4]} 17. axb4 {[%clk 0:01:46.2]} 17... cxb4 {[%clk 0:02:17.3]} 18. Na4
{[%clk 0:01:46.3]} 18... Nxd5 {[%clk 0:02:05.8]} 19. Ng5 {[%clk 0:01:32]} 19...
N7f6 {[%clk 0:01:50.8]} 20. g3 {[%clk 0:01:20.6]} 20... h6 {[%clk 0:01:50.4]}
21. Nh3 {[%clk 0:01:19.9]} 21... Rac8 {[%clk 0:01:44.4]} 22. Rxe8 {[%clk
0:01:18]} 22... Rxe8 {[%clk 0:01:43.8]} 23. Bg2 {[%clk 0:01:14.4]} 23... Qe7
{[%clk 0:01:26.4]} 24. Rd1 {[%clk 0:01:06]} 24... Qe5 {[%clk 0:01:22.1]} 25. Bf3
{[%clk 0:00:28.3]} 25... Rc8 {[%clk 0:01:14.9]} 26. Re1 {[%clk 0:00:23.1]} 26...
Qf5 {[%clk 0:01:15]} 27. Kg2 {[%clk 0:00:20.8]} 27... Qxc2 {[%clk 0:01:14]} 28.
Qxc2 {[%clk 0:00:19.7]} 28... Rxc2 {[%clk 0:01:13.3]} 29. Kg1 {[%clk 0:00:16]}
29... Bc6 {[%clk 0:01:06.4]} 30. b3 {[%clk 0:00:15.3]} 30... Bxa4 {[%clk
0:01:03.7]} 31. bxa4 {[%clk 0:00:16.2]} 31... Nc3 {[%clk 0:01:03.7]} 32. Nf4
{[%clk 0:00:14.7]} 32... b3 {[%clk 0:01:02.9]} 33. Ne2 {[%clk 0:00:12.1]} 33...
Nxe2+ {[%clk 0:00:58]} 34. Bxe2 {[%clk 0:00:12.2]} 34... b2 {[%clk 0:00:55]} 35.
Bd3 {[%clk 0:00:12.4]} 35... Rc1 {[%clk 0:00:55.2]} 36. Kf1 {[%clk 0:00:12.8]}
36... Nd5 {[%clk 0:00:49.9]} 37. Ke2 {[%clk 0:00:11.5]} 37... Nc3+ {[%clk
0:00:45.4]} 38. Kd2 {[%clk 0:00:11.2]} 38... Rxe1 {[%clk 0:00:45.5]} 39. Kxe1
{[%clk 0:00:11.3]} 39... b1=Q+ {[%clk 0:00:44.9]} 0-1

[Event "*** SCC Grand Prix: Titled Tuesday Blitz"]
[Site "Chess.com"]
[Date "2020.09.29"]
[Round "8"]
[White "RestartingChess"]
[Black "Ladislav1969"]
[Result "1-0"]
[WhiteElo "2511"]
[BlackElo "2353"]
[TimeControl "180+1"]
[EndTime "11:32:29 PDT"]
[Termination "RestartingChess won on time"]

1. e4 {[%clk 0:03:00.9]} 1... c5 {[%clk 0:02:59.4]} 2. Nf3 {[%clk 0:03:01.5]}
2... e6 {[%clk 0:02:59.9]} 3. b3 {[%clk 0:03:01.8]} 3... Nf6 {[%clk 0:02:56.6]}
4. e5 {[%clk 0:03:02]} 4... Nd5 {[%clk 0:02:56.7]} 5. c4 {[%clk 0:03:02.9]} 5...
Ne7 {[%clk 0:02:49.5]} 6. Bb2 {[%clk 0:03:03.3]} 6... Nbc6 {[%clk 0:02:49.5]} 7.
Be2 {[%clk 0:03:03]} 7... Ng6 {[%clk 0:02:49.3]} 8. O-O {[%clk 0:03:01.6]} 8...
Qc7 {[%clk 0:02:47.5]} 9. Nc3 {[%clk 0:03:00.4]} 9... Ncxe5 {[%clk 0:02:43.6]}
10. Nb5 {[%clk 0:03:00.8]} 10... Qb8 {[%clk 0:02:43]} 11. Nxe5 {[%clk
0:02:57.8]} 11... Nxe5 {[%clk 0:02:42.2]} 12. d4 {[%clk 0:02:58.3]} 12... cxd4
{[%clk 0:02:32.5]} 13. Qxd4 {[%clk 0:02:57.2]} 13... Nc6 {[%clk 0:02:31.8]} 14.
Qg4 {[%clk 0:02:55.2]} 14... a6 {[%clk 0:02:30.7]} 15. Nc3 {[%clk 0:02:50.8]}
15... h5 {[%clk 0:02:29]} 16. Qg5 {[%clk 0:02:43.3]} 16... Qe5 {[%clk
0:02:27.7]} 17. Qxe5 {[%clk 0:02:41.7]} 17... Nxe5 {[%clk 0:02:27.4]} 18. Ne4
{[%clk 0:02:37]} 18... f6 {[%clk 0:02:14.7]} 19. Rad1 {[%clk 0:02:30.8]} 19...
h4 {[%clk 0:02:02]} 20. f4 {[%clk 0:02:30.6]} 20... Nc6 {[%clk 0:01:57.1]} 21.
Bf3 {[%clk 0:02:30.2]} 21... b6 {[%clk 0:01:48.1]} 22. Nd6+ {[%clk 0:02:30.1]}
22... Bxd6 {[%clk 0:01:48.1]} 23. Rxd6 {[%clk 0:02:31]} 23... Bb7 {[%clk
0:01:48.1]} 24. Rfd1 {[%clk 0:02:27.5]} 24... O-O-O {[%clk 0:01:44.1]} 25. a3
{[%clk 0:02:27.9]} 25... Kc7 {[%clk 0:01:37.4]} 26. b4 {[%clk 0:02:26.3]} 26...
Nb8 {[%clk 0:01:37.4]} 27. Bxb7 {[%clk 0:02:19.8]} 27... Kxb7 {[%clk 0:01:37.5]}
28. b5 {[%clk 0:02:20.4]} 28... Rc8 {[%clk 0:01:28.4]} 29. Bd4 {[%clk
0:01:57.3]} 29... Rxc4 {[%clk 0:01:27.9]} 30. Rxb6+ {[%clk 0:01:56.3]} 30... Ka8
{[%clk 0:01:25.8]} 31. bxa6 {[%clk 0:01:54.7]} 31... Rhc8 {[%clk 0:01:14.7]} 32.
h3 {[%clk 0:01:48.4]} 32... Rc1 {[%clk 0:01:06.9]} 33. Rxc1 {[%clk 0:01:47.8]}
33... Rxc1+ {[%clk 0:01:06.5]} 34. Kh2 {[%clk 0:01:48.6]} 34... Nc6 {[%clk
0:01:06.3]} 35. Bf2 {[%clk 0:01:47.2]} 35... Rc2 {[%clk 0:00:57.4]} 36. Bxh4
{[%clk 0:01:41.7]} 36... Nd4 {[%clk 0:00:34.1]} 37. Rb7 {[%clk 0:01:23.2]} 37...
Nf3+ {[%clk 0:00:32.4]} 38. Kg3 {[%clk 0:01:23.5]} 38... Nxh4 {[%clk 0:00:28.3]}
39. Kxh4 {[%clk 0:01:22.7]} 39... Rd2 {[%clk 0:00:23.1]} 40. g4 {[%clk
0:01:19.9]} 40... Rd3 {[%clk 0:00:18.9]} 41. a4 {[%clk 0:01:18.6]} 41... Rd4
{[%clk 0:00:16.7]} 42. Kh5 {[%clk 0:01:17.7]} 42... Rxf4 {[%clk 0:00:08.6]} 43.
Rxd7 {[%clk 0:01:17.1]} 43... e5 {[%clk 0:00:05.3]} 44. Rxg7 {[%clk 0:01:16.7]}
44... e4 {[%clk 0:00:04.9]} 45. Re7 {[%clk 0:01:17.1]} 45... e3 {[%clk
0:00:03.6]} 46. Rxe3 {[%clk 0:01:17]} 46... Ka7 {[%clk 0:00:03.9]} 47. Re6
{[%clk 0:01:17.9]} 47... f5 {[%clk 0:00:02.8]} 48. g5 {[%clk 0:01:16.6]} 48...
Rf1 {[%clk 0:00:02.6]} 49. g6 {[%clk 0:01:16.9]} 49... f4 {[%clk 0:00:02.5]} 50.
g7 {[%clk 0:01:17.5]} 50... Rg1 {[%clk 0:00:02.8]} 51. Rg6 {[%clk 0:01:18.2]}
51... Rh1 {[%clk 0:00:01.5]} 52. g8=Q {[%clk 0:01:16]} 52... Rxh3+ {[%clk
0:00:01.2]} 53. Kg5 {[%clk 0:01:16.7]} 53... Rg3+ {[%clk 0:00:01.3]} 54. Kh6
{[%clk 0:01:16.9]} 1-0

[Event "*** SCC Grand Prix: Titled Tuesday Blitz"]
[Site "Chess.com"]
[Date "2020.09.29"]
[Round "8"]
[White "gmpeter008"]
[Black "Sven_Tica"]
[Result "1-0"]
[WhiteElo "2421"]
[BlackElo "2645"]
[TimeControl "180+1"]
[EndTime "11:32:31 PDT"]
[Termination "gmpeter008 won by resignation"]

1. d4 {[%clk 0:03:00.9]} 1... d5 {[%clk 0:03:00]} 2. Bf4 {[%clk 0:02:57]} 2...
e6 {[%clk 0:03:00.1]} 3. e3 {[%clk 0:02:55]} 3... Bd6 {[%clk 0:03:00.7]} 4. Nf3
{[%clk 0:02:54.5]} 4... Qe7 {[%clk 0:02:58.7]} 5. Nbd2 {[%clk 0:02:52.2]} 5...
Nd7 {[%clk 0:02:57.8]} 6. Bxd6 {[%clk 0:02:42.3]} 6... Qxd6 {[%clk 0:02:57.1]}
7. e4 {[%clk 0:02:41.7]} 7... dxe4 {[%clk 0:02:56.1]} 8. Nxe4 {[%clk 0:02:41.4]}
8... Qb4+ {[%clk 0:02:56.4]} 9. c3 {[%clk 0:02:36.5]} 9... Qxb2 {[%clk
0:02:53.4]} 10. Rb1 {[%clk 0:02:36.7]} 10... Qa3 {[%clk 0:02:53.2]} 11. Bd3
{[%clk 0:02:27.4]} 11... Ngf6 {[%clk 0:02:51.6]} 12. O-O {[%clk 0:02:26.7]}
12... O-O {[%clk 0:02:45.5]} 13. Rb3 {[%clk 0:01:58.5]} 13... Qa5 {[%clk
0:02:34.2]} 14. Re1 {[%clk 0:01:56.4]} 14... Nxe4 {[%clk 0:02:23.3]} 15. Rxe4
{[%clk 0:01:55]} 15... Nf6 {[%clk 0:02:20.8]} 16. Rh4 {[%clk 0:01:33.5]} 16...
Rd8 {[%clk 0:02:13.3]} 17. Rb5 {[%clk 0:01:20.7]} 17... Qxa2 {[%clk 0:02:12.6]}
18. Bxh7+ {[%clk 0:01:16.3]} 18... Nxh7 {[%clk 0:02:01.8]} 19. Rbh5 {[%clk
0:01:14]} 19... Bd7 {[%clk 0:01:59.7]} 20. Rxh7 {[%clk 0:01:11.6]} 20... Kf8
{[%clk 0:01:59.7]} 21. Rg4 {[%clk 0:01:04.4]} 21... Be8 {[%clk 0:01:13.9]} 22.
Rgxg7 {[%clk 0:00:45.2]} 22... Rd5 {[%clk 0:01:14.1]} 23. h4 {[%clk 0:00:32.2]}
23... Rb5 {[%clk 0:01:08.6]} 24. Kh2 {[%clk 0:00:29.5]} 24... Qxf2 {[%clk
0:01:01]} 25. Ne5 {[%clk 0:00:22.8]} 25... Rd8 {[%clk 0:00:47.9]} 26. Qg4 {[%clk
0:00:19.8]} 26... Rxe5 {[%clk 0:00:25.3]} 27. dxe5 {[%clk 0:00:17.9]} 27... Rd2
{[%clk 0:00:25.8]} 28. Rg8+ {[%clk 0:00:14.1]} 28... Ke7 {[%clk 0:00:26.1]} 29.
Rhh8 {[%clk 0:00:14.1]} 29... Bb5 {[%clk 0:00:20.1]} 30. Qg5+ {[%clk 0:00:14.2]}
30... Kd7 {[%clk 0:00:20.3]} 31. Rd8+ {[%clk 0:00:14.3]} 31... Kc6 {[%clk
0:00:20.7]} 32. Rxd2 {[%clk 0:00:15.2]} 1-0

[Event "*** SCC Grand Prix: Titled Tuesday Blitz"]
[Site "Chess.com"]
[Date "2020.09.29"]
[Round "8"]
[White "hungrycaterpillar4"]
[Black "kleopl"]
[Result "1-0"]
[WhiteElo "2615"]
[BlackElo "2463"]
[TimeControl "180+1"]
[EndTime "11:32:33 PDT"]
[Termination "hungrycaterpillar4 won on time"]

1. h3 {[%clk 0:02:51.9]} 1... e5 {[%clk 0:02:56.9]} 2. a3 {[%clk 0:02:51.3]}
2... d5 {[%clk 0:02:56.4]} 3. b4 {[%clk 0:02:51.8]} 3... Nf6 {[%clk 0:02:55.1]}
4. Bb2 {[%clk 0:02:52.3]} 4... Bd6 {[%clk 0:02:54.5]} 5. g3 {[%clk 0:02:52.5]}
5... a5 {[%clk 0:02:52.5]} 6. b5 {[%clk 0:02:48]} 6... Nbd7 {[%clk 0:02:50.9]}
7. Bg2 {[%clk 0:02:48.4]} 7... Nb6 {[%clk 0:02:49.5]} 8. d3 {[%clk 0:02:47.8]}
8... O-O {[%clk 0:02:49.3]} 9. a4 {[%clk 0:02:47.9]} 9... c6 {[%clk 0:02:47.1]}
10. Nd2 {[%clk 0:02:42.2]} 10... cxb5 {[%clk 0:02:39.2]} 11. axb5 {[%clk
0:02:43.1]} 11... Bd7 {[%clk 0:02:39.6]} 12. Ngf3 {[%clk 0:02:43]} 12... Re8
{[%clk 0:02:37.4]} 13. e3 {[%clk 0:02:38.6]} 13... Bxb5 {[%clk 0:02:34.4]} 14.
O-O {[%clk 0:02:39.2]} 14... Bc6 {[%clk 0:02:34.2]} 15. Re1 {[%clk 0:02:39.1]}
15... Na4 {[%clk 0:02:32.3]} 16. Ba3 {[%clk 0:02:37.7]} 16... Nc3 {[%clk
0:02:21.9]} 17. Qc1 {[%clk 0:02:37.7]} 17... b5 {[%clk 0:02:21.6]} 18. Bxd6
{[%clk 0:02:35.9]} 18... Qxd6 {[%clk 0:02:21.3]} 19. d4 {[%clk 0:02:34.8]} 19...
Nd7 {[%clk 0:02:10.7]} 20. dxe5 {[%clk 0:02:30.7]} 20... Nxe5 {[%clk 0:02:11.6]}
21. Nd4 {[%clk 0:02:30.8]} 21... b4 {[%clk 0:02:06.5]} 22. Nb1 {[%clk
0:02:23.2]} 22... Nb5 {[%clk 0:02:00.7]} 23. Nxc6 {[%clk 0:02:22.9]} 23... Nxc6
{[%clk 0:01:57.6]} 24. Rd1 {[%clk 0:02:15.1]} 24... d4 {[%clk 0:01:18.8]} 25. c4
{[%clk 0:02:12.4]} 25... bxc3 {[%clk 0:01:14]} 26. Nxc3 {[%clk 0:02:12.6]} 26...
Nxc3 {[%clk 0:01:12.6]} 27. Qxc3 {[%clk 0:02:12.7]} 27... Ra6 {[%clk 0:00:47.6]}
28. exd4 {[%clk 0:02:10.4]} 28... a4 {[%clk 0:00:42.4]} 29. Qc4 {[%clk
0:02:04.9]} 29... Nb4 {[%clk 0:00:29.9]} 30. Rdb1 {[%clk 0:02:04.7]} 30... Rb8
{[%clk 0:00:26.7]} 31. Rxb4 {[%clk 0:02:00]} 31... Qxb4 {[%clk 0:00:24.1]} 32.
Qxa6 {[%clk 0:01:59.9]} 32... Qxd4 {[%clk 0:00:18.5]} 33. Rxa4 {[%clk 0:01:59]}
33... Qd1+ {[%clk 0:00:17.7]} 34. Kh2 {[%clk 0:01:53.7]} 34... h5 {[%clk
0:00:17]} 35. Ra1 {[%clk 0:01:53.7]} 35... Qd4 {[%clk 0:00:16]} 36. Qa7 {[%clk
0:01:52.5]} 36... Qb2 {[%clk 0:00:10.8]} 37. Ra2 {[%clk 0:01:51.9]} 37... Qb1
{[%clk 0:00:08]} 38. Bd5 {[%clk 0:01:51.2]} 38... Rf8 {[%clk 0:00:08.1]} 39. Re2
{[%clk 0:01:47.3]} 39... Qd3 {[%clk 0:00:07.5]} 40. Qa2 {[%clk 0:01:40.2]} 40...
g6 {[%clk 0:00:02.7]} 41. Qd2 {[%clk 0:01:37.5]} 41... Qf5 {[%clk 0:00:02.4]}
42. Be4 {[%clk 0:01:35.1]} 42... Qf6 {[%clk 0:00:02.3]} 43. Qf4 {[%clk
0:01:35.3]} 43... Qc3 {[%clk 0:00:01.7]} 44. Bd5 {[%clk 0:01:32.2]} 44... Kg7
{[%clk 0:00:02]} 45. Qe5+ {[%clk 0:01:31.6]} 45... Qxe5 {[%clk 0:00:02]} 46.
Rxe5 {[%clk 0:01:32.5]} 46... Rd8 {[%clk 0:00:02.1]} 47. Bb3 {[%clk 0:01:29.9]}
47... Rd7 {[%clk 0:00:02.6]} 48. Rb5 {[%clk 0:01:29.5]} 48... Rc7 {[%clk
0:00:02.8]} 49. h4 {[%clk 0:01:29.7]} 49... Kf6 {[%clk 0:00:03.2]} 50. Kg2
{[%clk 0:01:29.7]} 50... Kg7 {[%clk 0:00:03.6]} 51. Bd5 {[%clk 0:01:29.6]} 51...
Rd7 {[%clk 0:00:03.7]} 52. Kf3 {[%clk 0:01:27.5]} 52... Re7 {[%clk 0:00:04]} 53.
Rb7 {[%clk 0:01:27.1]} 53... Rxb7 {[%clk 0:00:03.6]} 54. Bxb7 {[%clk 0:01:28]}
54... f6 {[%clk 0:00:03.6]} 55. Ke4 {[%clk 0:01:25.3]} 1-0

[Event "*** SCC Grand Prix: Titled Tuesday Blitz"]
[Site "Chess.com"]
[Date "2020.09.29"]
[Round "8"]
[White "keepitcool9499"]
[Black "djano"]
[Result "1-0"]
[WhiteElo "2609"]
[BlackElo "2452"]
[TimeControl "180+1"]
[EndTime "11:32:33 PDT"]
[Termination "keepitcool9499 won on time"]

1. d4 {[%clk 0:03:00.9]} 1... d5 {[%clk 0:02:57.1]} 2. c4 {[%clk 0:02:58.8]}
2... c6 {[%clk 0:02:55.9]} 3. cxd5 {[%clk 0:02:58.2]} 3... cxd5 {[%clk
0:02:56.8]} 4. Nc3 {[%clk 0:02:58.8]} 4... Nf6 {[%clk 0:02:55.2]} 5. Bf4 {[%clk
0:02:58.8]} 5... e6 {[%clk 0:02:55.5]} 6. Nf3 {[%clk 0:02:58.3]} 6... Bd6 {[%clk
0:02:54.4]} 7. Bg3 {[%clk 0:02:58.8]} 7... O-O {[%clk 0:02:53.7]} 8. e3 {[%clk
0:02:59]} 8... Nc6 {[%clk 0:02:53]} 9. Bd3 {[%clk 0:02:59.3]} 9... Bxg3 {[%clk
0:02:42.1]} 10. hxg3 {[%clk 0:02:58.8]} 10... h6 {[%clk 0:02:41.5]} 11. Rc1
{[%clk 0:02:56.5]} 11... Bd7 {[%clk 0:02:41.4]} 12. Bb1 {[%clk 0:02:55]} 12...
Re8 {[%clk 0:02:26.8]} 13. Qd3 {[%clk 0:02:50.9]} 13... Nb4 {[%clk 0:02:23.1]}
14. Qd2 {[%clk 0:02:49.4]} 14... Rc8 {[%clk 0:02:16.6]} 15. Ne5 {[%clk
0:02:47.9]} 15... Re7 {[%clk 0:01:42.6]} 16. g4 {[%clk 0:02:34.9]} 16... Nc6
{[%clk 0:01:42.2]} 17. Qd3 {[%clk 0:02:23.9]} 17... Be8 {[%clk 0:01:25.7]} 18.
g5 {[%clk 0:00:39.6]} 18... hxg5 {[%clk 0:01:26.6]} 19. e4 {[%clk 0:00:26]}
19... Rec7 {[%clk 0:01:17.3]} 20. exd5 {[%clk 0:00:23.9]} 20... exd5 {[%clk
0:01:09.3]} 21. Qh3 {[%clk 0:00:24.4]} 21... Kf8 {[%clk 0:01:01.4]} 22. Qh8+
{[%clk 0:00:24.8]} 22... Ke7 {[%clk 0:01:01.7]} 23. Qxg7 {[%clk 0:00:23.1]}
23... Nxd4 {[%clk 0:00:40.9]} 24. Rh6 {[%clk 0:00:22.4]} 24... Qd6 {[%clk
0:00:37.5]} 25. Qxg5 {[%clk 0:00:19.9]} 25... Qe6 {[%clk 0:00:22.5]} 26. Rxf6
{[%clk 0:00:17.7]} 26... Qxf6 {[%clk 0:00:21.5]} 27. Nxd5+ {[%clk 0:00:17.5]}
1-0

[Event "*** SCC Grand Prix: Titled Tuesday Blitz"]
[Site "Chess.com"]
[Date "2020.09.29"]
[Round "8"]
[White "Bigfish1995"]
[Black "Oleksandr_Bortnyk"]
[Result "1-0"]
[WhiteElo "3111"]
[BlackElo "2905"]
[TimeControl "180+1"]
[EndTime "11:32:36 PDT"]
[Termination "Bigfish1995 won on time"]

1. e4 {[%clk 0:03:00.9]} 1... Nf6 {[%clk 0:02:58.4]} 2. e5 {[%clk 0:03:00.8]}
2... Nd5 {[%clk 0:02:59]} 3. d4 {[%clk 0:03:01.5]} 3... d6 {[%clk 0:02:59.3]} 4.
c4 {[%clk 0:03:02.2]} 4... Nb6 {[%clk 0:02:59.7]} 5. f4 {[%clk 0:03:02.9]} 5...
dxe5 {[%clk 0:02:57.4]} 6. fxe5 {[%clk 0:03:02.9]} 6... Bf5 {[%clk 0:02:58.2]}
7. Be3 {[%clk 0:03:02]} 7... e6 {[%clk 0:02:58.7]} 8. Nc3 {[%clk 0:03:01.9]}
8... Bb4 {[%clk 0:02:58.7]} 9. Nf3 {[%clk 0:02:57.9]} 9... c5 {[%clk 0:02:57.2]}
10. a3 {[%clk 0:02:55.8]} 10... cxd4 {[%clk 0:02:47.6]} 11. Bxd4 {[%clk
0:02:28.8]} 11... Be7 {[%clk 0:02:45.4]} 12. c5 {[%clk 0:02:27.7]} 12... Nd5
{[%clk 0:02:41.1]} 13. Bb5+ {[%clk 0:02:24.7]} 13... Nc6 {[%clk 0:02:39.4]} 14.
Qa4 {[%clk 0:02:15.1]} 14... O-O {[%clk 0:02:30.7]} 15. Bxc6 {[%clk 0:02:04.2]}
15... bxc6 {[%clk 0:02:31.6]} 16. Rd1 {[%clk 0:02:02.8]} 16... Nxc3 {[%clk
0:02:26]} 17. Bxc3 {[%clk 0:02:01.3]} 17... Qc7 {[%clk 0:02:21.9]} 18. Rd6
{[%clk 0:01:57.3]} 18... Qb7 {[%clk 0:01:19.9]} 19. Qxc6 {[%clk 0:01:34.2]}
19... Qb3 {[%clk 0:01:13.1]} 20. Nd4 {[%clk 0:01:33.8]} 20... Qc4 {[%clk
0:01:04.7]} 21. Nxf5 {[%clk 0:01:04.3]} 21... exf5 {[%clk 0:01:05.6]} 22. Qd5
{[%clk 0:01:04.7]} 22... Qf4 {[%clk 0:00:49.6]} 23. Bd2 {[%clk 0:01:04.4]} 23...
Qh4+ {[%clk 0:00:34.6]} 24. g3 {[%clk 0:01:02.9]} 24... Qh3 {[%clk 0:00:34.6]}
25. Rd7 {[%clk 0:01:00.2]} 25... Rae8 {[%clk 0:00:27.2]} 26. Kf2 {[%clk
0:00:59.8]} 26... f4 {[%clk 0:00:24.5]} 27. b4 {[%clk 0:00:54.2]} 27... Bg5
{[%clk 0:00:03.6]} 28. gxf4 {[%clk 0:00:48.3]} 28... Bh4+ {[%clk 0:00:02.4]} 29.
Ke2 {[%clk 0:00:48.6]} 29... Qxa3 {[%clk 0:00:01.5]} 30. c6 {[%clk 0:00:44.4]}
30... a5 {[%clk 0:00:01]} 31. bxa5 {[%clk 0:00:40.3]} 31... Qa4 {[%clk
0:00:01.5]} 32. Rb1 {[%clk 0:00:33.2]} 32... Rc8 {[%clk 0:00:01.8]} 33. c7
{[%clk 0:00:26.9]} 1-0